bitfinex/quotes_ETHUSD_20230113
["timestamp","ask_amount","ask_price","bid_price","bid_amount"]
[1673630576985,0.5271,1423.1,1422.4,0.0042383]
[1673630577352,0.06,1423.4,1422.9,1.584]
[1673630577658,2.566,1423.5,1422.9,1.584]
[1673630577659,2.5,1423.5,1422.9,0.0042368]
[1673630577822,0.527,1423.4,1422.9,0.0042368]
[1673630578473,1.584,1423.3,1422.7,3.0]
[1673630578771,1.584,1423.3,1422.6,0.066]
[1673630578772,1.57,1423.2,1422.6,0.066]
[1673630578925,1.584,1422.8,1422.4,3.40948427]
[1673630579395,1.584,1422.8,1422.4,2.3]
[1673630579396,0.5272,1422.8,1422.4,2.3]
[1673630579609,1.584,1422.9,1422.6,2.5]
[1673630579610,0.5272,1422.9,1422.6,2.5]
[1673630579829,0.5272,1422.9,1422.7,3.60633272]
[1673630580011,0.5271,1423.0,1422.6,3.67233272]
[1673630580358,0.7836,1423.2,1422.6,3.60633272]
[1673630580559,2.3676,1423.2,1422.7,3.60633272]
[1673630580870,0.066,1423.4,1422.8,7.69033272]
[1673630581186,4.2422,1423.6,1422.9,3.60633272]
[1673630581402,2.00022,1423.5,1422.9,3.60633272]
[1673630581712,1.584,1423.2,1422.8,0.066]
[1673630581899,1.584,1423.2,1422.5,2.566]
[1673630581900,1.575,1423.1,1422.5,2.566]
[1673630582111,4.045652,1423.1,1422.4,2.366]
[1673630582323,4.75421601,1423.1,1422.4,2.3]
[1673630582498,1.573,1422.6,1422.4,2.3]
[1673630582715,1.584,1422.9,1422.2,0.98240346]
[1673630582716,4.083,1422.5,1422.2,0.92240346]
[1673630583060,0.5273,1422.5,1422.2,0.85640346]
[1673630583249,0.5273,1422.5,1422.2,0.94246773]
[1673630583445,0.5273,1422.5,1422.2,0.85640346]
[1673630583712,1.584,1422.5,1422.2,0.83640346]
[1673630583874,8.61388,1422.5,1422.2,0.83640346]
[1673630584231,2.1773,1422.5,1422.2,0.83640346]
[1673630584393,1.584,1422.5,1422.2,0.83640346]
[1673630584600,2.67276805,1422.5,1422.2,0.83640346]
[1673630584948,0.5273,1422.4,1422.2,0.83640346]
[1673630585698,9.14213,1422.4,1422.2,0.83640346]
[1673630585939,2.1773,1422.4,1422.2,0.83640346]
[1673630586111,0.5273,1422.4,1422.2,0.83640346]
[1673630586517,0.5273,1422.5,1422.2,0.83640346]
[1673630586731,0.5273,1422.5,1422.2,4.44273618]
[1673630586943,0.066,1422.7,1422.3,5.17833272]
[1673630587202,0.066,1423.0,1422.4,12.22057272]
[1673630587361,1.575,1423.1,1422.6,7.02913]
[1673630587571,0.5271,1423.1,1422.8,2.5]
[1673630587781,4.674,1423.3,1422.9,3.60633272]
[1673630587992,0.066,1423.4,1423.2,3.60633272]
[1673630588204,0.06,1423.7,1423.3,3.83633272]
[1673630588205,0.066,1423.7,1423.3,3.83633272]
[1673630588471,0.335236,1423.8,1423.4,3.60633272]
[1673630588704,0.862036,1423.8,1423.3,2.35856401]
[1673630588992,0.862036,1423.8,1423.3,3.60633272]
[1673630589205,0.862036,1423.8,1423.4,3.60633272]
[1673630589206,1.68181603,1423.8,1423.4,3.60633272]
[1673630589539,0.335236,1423.8,1423.5,3.60633272]
[1673630589672,0.335236,1423.8,1423.6,3.60633272]
[1673630589884,0.862036,1423.8,1423.6,3.60633272]
[1673630590141,0.862036,1423.8,1423.5,0.066]
[1673630590303,0.862036,1423.8,1423.5,3.60633272]
[1673630590523,0.335236,1423.8,1423.6,10.63077272]
[1673630590735,0.335236,1423.8,1423.7,3.60633272]
[1673630591507,0.335236,1423.8,1423.7,10.63028272]
[1673630591666,0.335236,1423.8,1423.7,10.69628272]
[1673630591875,0.3126843,1423.9,1423.7,13.17075099]
[1673630592118,0.335236,1424.2,1423.9,2.5]
[1673630592310,0.335236,1424.2,1424.1,17.65027272]
[1673630592521,0.335236,1424.2,1424.1,3.62433272]
[1673630592764,0.335236,1424.2,1424.1,3.60633272]
[1673630593587,0.335236,1424.2,1424.1,13.12830272]
[1673630593768,0.335236,1424.2,1424.1,13.37830272]
[1673630594311,0.126,1424.9,1424.2,2.5]
[1673630594504,0.013074,1425.3,1424.2,2.5]
[1673630594505,2.513074,1425.3,1424.5,3.59933272]
[1673630594714,9.08656,1425.2,1424.5,3.60633272]
[1673630594924,1.972,1425.0,1424.5,3.60633272]
[1673630595185,16.00776,1425.0,1424.4,0.02]
[1673630595417,16.00776,1425.0,1424.2,1.00570799]
[1673630595418,0.5264,1424.9,1424.2,1.00570799]
[1673630595717,16.11014,1424.7,1424.2,1.00570799]
[1673630596026,16.17614,1424.7,1424.2,1.00570799]
[1673630596246,14.04098,1424.4,1424.2,1.00570799]
[1673630596406,2.5,1424.3,1424.2,1.00570799]
[1673630596762,3.0266,1424.3,1424.2,1.00570799]
[1673630596922,0.5266,1424.3,1424.2,4.61204071]
[1673630597163,7.0192,1424.7,1424.2,4.61204071]
[1673630597531,0.066,1424.7,1424.3,3.60633272]
[1673630597680,0.5265,1424.6,1424.4,3.60633272]
[1673630598101,0.5265,1424.6,1424.3,0.02]
[1673630598361,9.5186,1424.8,1424.2,1.00570799]
[1673630598362,0.5265,1424.7,1424.4,3.60633272]
[1673630598553,0.5265,1424.7,1424.3,0.02]
[1673630598731,0.5265,1424.7,1424.3,10.94538352]
[1673630599054,0.5265,1424.7,1424.4,3.60633272]
[1673630599398,11.75482242,1425.2,1424.5,13.12633272]
[1673630599399,2.5,1425.1,1424.5,13.12633272]
[1673630599567,2.5,1425.1,1424.6,3.60633272]
[1673630599781,2.5,1425.1,1424.7,3.60633272]
[1673630599991,0.7764,1425.0,1424.6,0.02]
[1673630600233,0.7764,1425.0,1424.5,3.62633272]
[1673630600457,0.7764,1425.0,1424.5,3.60633272]
[1673630600675,0.07764,1424.9,1424.5,10.57627272]
[1673630600831,0.7764,1425.0,1424.6,3.60633272]
[1673630601048,0.7764,1425.0,1424.7,3.60633272]
[1673630601252,0.7764,1425.0,1424.6,0.02]
[1673630601253,14.81192,1425.0,1424.6,0.02]
[1673630601514,14.81192,1425.0,1424.4,2.144]
[1673630601515,10.36016,1425.0,1424.4,2.164]
[1673630601680,7.86016,1425.0,1424.5,3.60633272]
[1673630601885,0.786016,1424.9,1424.4,7.04032]
[1673630602096,0.786016,1424.9,1424.5,3.60633272]
[1673630602471,0.5265,1424.8,1424.5,3.60633272]
[1673630602676,0.5285,1424.8,1424.6,3.60633272]
[1673630602833,7.01758,1425.0,1424.8,0.52449999]
[1673630602834,0.066,1425.0,1424.8,0.52449999]
[1673630603049,7.01708,1425.1,1424.8,0.52449999]
[1673630603050,0.066,1425.1,1424.9,3.60633272]
[1673630603358,16.94908242,1425.2,1424.8,0.54449999]
[1673630603587,0.5263,1425.1,1424.8,4.13083271]
[1673630603811,0.4263,1425.1,1424.8,4.13083271]
[1673630604193,0.4263,1425.1,1424.8,0.52449999]
[1673630604659,7.44357,1425.1,1424.8,0.52449999]
[1673630604823,7.50957,1425.1,1424.8,0.52449999]
[1673630605032,14.52684,1425.1,1424.8,0.52449999]
[1673630605239,7.5096,1425.1,1424.8,0.52449999]
[1673630605504,2.5,1425.0,1424.8,0.52449999]
[1673630605666,0.4923,1425.1,1424.8,0.52449999]
[1673630605872,0.4263,1425.1,1424.8,0.52449999]
[1673630606404,9.94344,1425.1,1424.8,0.52449999]
[1673630606640,17.02658,1425.1,1424.8,0.52449999]
[1673630606856,2.071,1425.0,1424.8,0.52449999]
[1673630607066,28.07212,1424.9,1424.8,0.52449999]
[1673630607253,28.66452,1424.9,1424.8,0.52449999]
[1673630607715,32.27085272,1424.9,1424.8,0.52449999]
[1673630607884,0.06184792,1424.7,1424.2,1.00570799]
[1673630608097,33.19948792,1424.7,1424.2,1.00570799]
[1673630608304,2.067,1424.4,1424.2,1.00570799]
[1673630608544,3.81303272,1424.3,1423.8,0.02]
[1673630608768,25.40260272,1424.3,1423.6,2.106]
[1673630608925,25.40260272,1424.3,1423.5,9.75291]
[1673630608926,25.46860272,1424.3,1423.5,9.75291]
[1673630609135,25.46860272,1424.3,1423.5,4.10633272]
[1673630609136,5.67333272,1424.2,1423.5,4.10633272]
[1673630609391,7.02264,1424.0,1423.6,3.60633272]
[1673630609559,0.066,1424.0,1423.7,3.60633272]
[1673630609773,7.02247,1424.0,1423.6,0.02]
[1673630609978,0.066,1424.0,1423.6,3.60633272]
[1673630610209,0.5927,1424.1,1424.0,0.066]
[1673630610448,0.5927,1424.1,1424.0,4.91633272]
[1673630610449,0.5267,1424.1,1424.0,4.91633272]
[1673630610608,0.5267,1424.2,1424.0,1.31]
[1673630610819,0.5267,1424.2,1424.0,0.066]
[1673630610820,7.54839,1424.2,1424.0,0.066]
[1673630611077,0.066,1424.2,1424.0,0.066]
[1673630611239,0.5267,1424.2,1424.0,0.066]
[1673630611445,0.0065858,1424.3,1424.0,0.066]
[1673630611446,0.5331858,1424.3,1424.0,3.67233272]
[1673630611915,0.0065858,1424.3,1424.0,3.67233272]
[1673630612544,0.0065858,1424.3,1424.1,3.60633272]
[1673630612728,0.0065858,1424.3,1424.2,3.60633272]
[1673630613069,0.0065858,1424.3,1424.1,0.02]
[1673630613234,0.5267,1424.2,1424.0,0.066]
[1673630614284,3.0267,1424.2,1424.0,0.066]
[1673630614529,0.30267,1424.1,1424.0,0.066]
[1673630614746,21.26858,1424.1,1424.0,0.066]
[1673630614962,25.46761272,1424.1,1424.0,0.066]
[1673630615157,28.46761272,1424.1,1424.0,0.066]
[1673630615365,2.5,1424.0,1423.4,0.00475075]
[1673630615573,5.92833272,1423.9,1423.4,0.00475075]
[1673630615786,2.071,1423.7,1423.4,0.00475075]
[1673630616120,17.65521272,1423.6,1423.4,0.00475075]
[1673630616274,2.5,1423.5,1423.4,0.00475075]
[1673630616493,22.22319272,1423.5,1423.4,0.00475075]
[1673630616731,22.81609272,1423.5,1423.4,0.00475075]
[1673630616924,2.5,1423.4,1423.2,0.00439449]
[1673630617149,0.527,1423.4,1423.2,6.10872721]
[1673630617479,7.55243,1423.4,1423.2,0.02439449]
[1673630617692,7.55243,1423.4,1423.2,0.00439449]
[1673630617693,0.593,1423.4,1423.2,0.00439449]
[1673630617850,7.55243,1423.4,1423.2,0.00439449]
[1673630618061,16.108196,1423.4,1423.2,0.00439449]
[1673630618327,18.608196,1423.4,1423.2,0.00439449]
[1673630618653,14.64386,1423.4,1423.2,0.00439449]
[1673630618807,14.64386,1423.4,1423.3,3.60633272]
[1673630619022,0.066,1423.4,1423.3,3.60633272]
[1673630619274,0.066,1423.8,1423.3,10.63225272]
[1673630619482,7.02273,1424.0,1423.4,3.60633272]
[1673630619483,7.55022,1423.9,1423.4,3.60633272]
[1673630619641,14.63964,1423.9,1423.4,3.60633272]
[1673630619963,14.11284,1423.9,1423.4,6.10633272]
[1673630620178,14.11284,1423.9,1423.4,0.02]
[1673630620386,14.11284,1423.9,1423.2,9.17041449]
[1673630620596,14.11284,1423.9,1423.3,3.60633272]
[1673630621023,14.11284,1423.9,1423.2,9.17071449]
[1673630621024,2.06,1423.7,1423.2,0.02439449]
[1673630621214,16.12006,1423.5,1423.2,0.00439449]
[1673630621427,23.21109,1423.5,1423.2,0.00439449]
[1673630621690,21.07776,1423.3,1423.2,0.00439449]
[1673630621861,21.07776,1423.3,1422.6,0.02439449]
[1673630621862,2.5,1423.2,1422.6,0.02439449]
[1673630622054,2.5,1423.2,1422.6,0.00439449]
[1673630622055,7.02794,1422.9,1422.6,0.00439449]
[1673630622266,7.09394,1422.9,1422.6,0.00439449]
[1673630622594,9.95576,1422.8,1422.6,0.00439449]
[1673630622805,10.02176,1422.8,1422.6,0.00439449]
[1673630623015,0.066,1422.8,1422.6,0.00439449]
[1673630623366,7.02735,1423.1,1422.6,0.00439449]
[1673630623367,16.55534,1423.0,1422.6,0.00439449]
[1673630623585,7.02841,1422.8,1422.6,0.00439449]
[1673630623810,0.066,1422.8,1422.6,0.00439449]
[1673630624107,7.02842,1422.8,1422.6,0.00439449]
[1673630624434,2.4,1422.7,1422.6,0.00439449]
[1673630625156,2.64,1422.7,1422.6,0.00439449]
[1673630625371,17.22496,1422.7,1422.6,0.00439449]
[1673630625529,20.89729272,1422.7,1422.6,0.00439449]
[1673630626019,17.29096,1422.7,1422.6,0.00439449]
[1673630626153,20.89729272,1422.7,1422.6,0.00439449]
[1673630626366,2.5,1422.6,1422.5,2.6148326]
[1673630626584,19.15706,1422.6,1422.5,2.6148326]
[1673630626791,2.5,1422.5,1422.2,0.85640346]
[1673630627039,10.63670272,1422.4,1422.2,0.83640346]
[1673630627280,2.5,1422.3,1422.2,0.83640346]
[1673630627417,9.53086,1422.3,1422.2,0.83640346]
[1673630627628,14.12772,1422.3,1422.2,0.83640346]
[1673630628096,0.066,1422.3,1422.2,0.83640346]
[1673630628417,0.5273,1422.4,1422.2,0.82640346]
[1673630628609,14.06129,1422.4,1422.2,0.82640346]
[1673630628828,0.5274,1422.3,1422.2,0.82640346]
[1673630629311,18.19545272,1422.3,1422.2,0.82640346]
[1673630629522,14.65512,1422.3,1422.2,0.82640346]
[1673630629942,18.26145272,1422.3,1422.2,0.82640346]
[1673630630182,14.65512,1422.3,1422.2,0.82640346]
[1673630630357,0.066,1422.3,1422.2,0.82640346]
[1673630630570,12.10066,1422.6,1422.2,0.82640346]
[1673630630830,15.270516,1422.5,1422.2,0.82640346]
[1673630631087,2.5,1422.4,1422.2,0.82640346]
[1673630631217,9.53061,1422.4,1422.2,0.82640346]
[1673630631414,9.59661,1422.4,1422.2,0.82640346]
[1673630631622,14.12722,1422.4,1422.2,0.82640346]
[1673630631863,18.53104277,1422.4,1422.2,0.82640346]
[1673630632042,0.5933,1422.4,1422.2,0.82640346]
[1673630632248,0.066,1422.5,1422.3,3.60633272]
[1673630632503,16.18829,1423.0,1422.4,7.03037]
[1673630632670,14.05715,1422.8,1422.4,0.02]
[1673630632880,14.05715,1422.8,1422.2,17.10110346]
[1673630632881,14.12315,1422.8,1422.2,17.10110346]
[1673630633139,14.12315,1422.8,1422.3,3.50497535]
[1673630633528,0.066,1422.8,1422.3,7.11130807]
[1673630633722,7.55549,1422.9,1422.3,23.25702807]
[1673630633723,0.066,1422.9,1422.3,23.25702807]
[1673630633968,0.33954373,1423.1,1422.6,9.52898]
[1673630633969,0.86664373,1423.1,1422.6,9.52898]
[1673630634180,3.60633272,1423.0,1422.6,0.02]
[1673630634352,14.92046373,1423.1,1422.4,11.56299281]
[1673630634353,0.40554373,1423.1,1422.5,7.02982]
[1673630634564,7.36654373,1423.1,1422.6,3.60633272]
[1673630634823,0.40554373,1423.1,1422.6,3.60633272]
[1673630634994,0.33954373,1423.1,1422.6,3.60633272]
[1673630635221,3.60633272,1423.0,1422.5,0.02]
[1673630635432,4.13343272,1423.0,1422.3,3.21197535]
[1673630635671,14.05617,1422.9,1422.3,6.81830807]
[1673630635835,14.12217,1422.9,1422.4,0.00544065]
[1673630636192,2.5,1422.8,1422.4,0.00544065]
[1673630636503,24.11276,1422.8,1422.2,0.84640346]
[1673630636663,24.17876,1422.8,1422.2,0.82640346]
[1673630636872,17.14998,1422.8,1422.3,0.00544103]
[1673630637335,10.12159,1422.8,1422.3,0.00544103]
[1673630638172,10.12159,1422.8,1422.2,0.82640346]
[1673630638173,3.60633272,1422.7,1422.2,0.82640346]
[1673630638500,18.02592599,1422.6,1422.2,0.82640346]
[1673630638724,18.61922599,1422.6,1422.2,0.82640346]
[1673630638939,3.60633272,1422.5,1422.2,0.82640346]
[1673630639111,2.5,1422.4,1422.2,0.82640346]
[1673630639323,3.0273,1422.4,1422.2,0.82640346]
[1673630639665,0.30273,1422.3,1422.2,0.82640346]
[1673630640731,7.62398,1422.4,1422.2,0.82640346]
[1673630641039,0.066,1422.4,1422.2,0.82640346]
[1673630641198,0.066,1422.5,1422.3,0.00605046]
[1673630641407,16.62354,1422.8,1422.3,0.00605046]
[1673630641660,14.05922,1422.6,1422.3,0.00605046]
[1673630641872,0.066,1422.6,1422.3,0.00605046]
[1673630642036,16.62356,1422.8,1422.3,0.00605046]
[1673630642250,23.65241,1422.8,1422.3,0.00605046]
[1673630642684,27.25874272,1422.8,1422.3,0.00605046]
[1673630643226,20.22989272,1422.8,1422.3,0.00605046]
[1673630643438,0.066,1422.8,1422.3,3.61238318]
[1673630643792,7.42662373,1423.1,1422.4,5.66833272]
[1673630643793,0.40554373,1423.1,1422.4,5.66833272]
[1673630644104,2.5,1423.0,1422.5,14.06496396]
[1673630644290,2.5,1423.0,1422.5,9.98344563]
[1673630644467,16.55488,1423.0,1422.5,9.98344563]
[1673630644687,16.62088,1423.0,1422.5,2.95390563]
[1673630644947,16.62088,1423.0,1422.5,2.93390563]
[1673630645309,16.62088,1423.0,1422.5,0.00555396]
[1673630645765,10.12054,1423.0,1422.5,7.03515396]
[1673630645978,17.14798,1423.0,1422.5,7.05515396]
[1673630646152,17.14798,1423.0,1422.5,0.02555396]
[1673630646357,17.14798,1423.0,1422.5,0.00555396]
[1673630646623,0.066,1423.0,1422.6,3.60633272]
[1673630646836,0.33954373,1423.1,1422.7,7.02883]
[1673630646993,0.5271,1423.0,1422.7,0.02]
[1673630647340,0.5271,1423.0,1422.6,7.05606625]
[1673630647549,10.46000373,1423.1,1422.6,7.05606625]
[1673630647954,17.48721373,1423.1,1422.6,7.05606625]
[1673630648360,3.60633272,1423.0,1422.6,0.02696625]
[1673630648600,7.02742,1423.0,1422.6,7.02932]
[1673630648798,3.0272,1422.9,1422.6,0.02696625]
[1673630649015,0.5272,1422.9,1422.6,7.03601625]
[1673630649352,0.5272,1422.9,1422.6,12.07089359]
[1673630649562,0.5271,1423.0,1422.6,8.46456087]
[1673630649898,2.5,1422.9,1422.6,0.02696625]
[1673630650072,7.62068,1423.0,1422.6,7.03633625]
[1673630650250,21.08374,1422.9,1422.6,0.02696625]
[1673630650453,21.08374,1422.9,1422.4,9.17526]
[1673630650454,14.1218,1422.9,1422.4,0.02]
[1673630650669,14.1218,1422.9,1422.3,7.05057]
[1673630650919,0.5272,1422.8,1422.5,2.5]
[1673630651107,7.36645373,1423.1,1422.8,0.5272]
[1673630651108,0.40554373,1423.1,1422.8,0.5272]
[1673630651326,5.1030949,1423.5,1423.0,4.19953271]
[1673630651327,0.066,1423.5,1423.0,4.19953271]
[1673630651506,0.30721315,1423.6,1423.4,3.60633272]
[1673630651716,0.30721315,1423.6,1423.5,3.60633272]
[1673630651944,0.30721315,1423.6,1423.4,0.02]
[1673630652247,0.30721315,1423.6,1423.3,0.02]
[1673630652248,0.5269,1423.5,1423.3,0.02]
[1673630652463,7.02494,1423.5,1423.0,0.59319999]
[1673630652708,0.5929,1423.5,1423.0,14.64798999]
[1673630652986,14.57721,1423.5,1423.0,0.61319999]
[1673630653237,14.64321,1423.5,1423.0,0.59319999]
[1673630653561,1.0395615,1423.4,1423.0,0.59319999]
[1673630653728,15.0908915,1423.4,1423.0,0.59319999]
[1673630654088,2.5,1423.3,1423.0,0.59319999]
[1673630654398,7.02691,1423.1,1423.0,0.59319999]
[1673630654567,7.09291,1423.1,1423.0,0.59319999]
[1673630654782,17.14692,1423.1,1423.0,0.59319999]
[1673630655454,13.72634272,1423.1,1423.0,0.59319999]
[1673630655605,0.5931,1423.1,1423.0,0.59319999]
[1673630655821,0.5271,1423.1,1422.8,0.00254199]
[1673630657186,0.5271,1423.1,1422.8,17.66540471]
[1673630657398,0.5271,1423.1,1422.8,0.02254199]
[1673630657606,0.5271,1423.1,1422.8,0.00254199]
[1673630657818,0.066,1423.2,1422.9,6.10633272]
[1673630658069,2.58744354,1423.3,1423.0,0.00254164]
[1673630658070,1.0395615,1423.3,1423.0,0.00254164]
[1673630658284,1.0395615,1423.3,1423.0,21.08444164]
[1673630658445,1.0395615,1423.3,1423.0,21.10444164]
[1673630658662,1.0395615,1423.3,1423.0,7.04984164]
[1673630658868,1.60100585,1423.3,1423.0,0.02254164]
[1673630659114,0.527,1423.2,1423.0,0.00254164]
[1673630659321,1.5665615,1423.3,1423.0,0.00254164]
[1673630659742,2.5,1423.2,1423.0,0.00254164]
[1673630659914,9.52657,1423.2,1423.0,0.00254164]
[1673630660137,4.53929935,1423.2,1422.8,7.02833]
[1673630660353,3.01286085,1423.2,1422.8,7.04833]
[1673630660564,2.58744354,1423.2,1422.8,7.04833]
[1673630660999,1.0395615,1423.1,1422.8,7.04833]
[1673630661235,2.58744354,1423.2,1422.8,17.68305272]
[1673630661452,2.58744354,1423.2,1422.9,6.33633272]
[1673630661453,1.0395615,1423.2,1422.9,6.33633272]
[1673630661761,1.1055615,1423.3,1423.0,21.71583327]
[1673630661984,2.58744354,1423.3,1423.0,21.73583327]
[1673630662147,1.0395615,1423.2,1423.0,0.02]
[1673630662360,1.0395615,1423.2,1422.9,0.00779598]
[1673630662361,1.0395615,1423.1,1422.9,0.00779598]
[1673630663030,1.0395615,1423.1,1422.8,0.02]
[1673630663211,10.14150354,1423.1,1422.7,0.02]
[1673630663447,11.42549289,1423.1,1422.6,9.14303]
[1673630663649,11.42549289,1423.1,1422.6,12.74936272]
[1673630663650,4.39853289,1423.1,1422.6,12.74936272]
[1673630663978,4.39853289,1423.1,1422.6,0.02]
[1673630663979,8.0670315,1423.0,1422.6,0.02]
[1673630664142,8.9227882,1423.0,1422.5,0.02]
[1673630664360,15.9504482,1423.0,1422.5,0.00779817]
[1673630664803,2.5,1422.9,1422.5,7.03760817]
[1673630665036,17.49837024,1423.0,1422.5,7.05760817]
[1673630665193,1.8951282,1423.0,1422.6,3.60633272]
[1673630665402,4.16221199,1423.1,1422.6,3.60633272]
[1673630665403,3.18054354,1423.1,1422.7,0.00779708]
[1673630665724,2.58744354,1423.1,1422.7,7.03634708]
[1673630665927,1.0395615,1423.1,1422.7,17.6915598]
[1673630666139,1.0395615,1423.1,1422.8,1.76915598]
[1673630666397,1.0395615,1423.1,1422.9,7.0278]
[1673630666610,1.0395615,1423.1,1422.9,7.0478]
[1673630666785,1.0395615,1423.1,1422.9,14.0757]
[1673630666977,3.70111199,1423.2,1423.0,2.50147063]
[1673630666978,1.1055615,1423.2,1423.0,2.50147063]
[1673630667194,2.58744354,1423.2,1423.0,16.55590063]
[1673630667399,1.0395615,1423.2,1423.0,0.02347063]
[1673630667661,1.0395615,1423.1,1423.0,0.00347063]
[1673630667870,1.0395615,1423.2,1423.0,0.00347063]
[1673630668254,1.0395615,1423.1,1422.9,0.02]
[1673630668507,1.0395615,1423.1,1422.8,7.02816]
[1673630668823,2.58744354,1423.1,1422.8,7.04816]
[1673630669821,2.58744354,1423.1,1422.8,14.07655]
[1673630670043,1.0395615,1423.1,1422.8,14.07655]
[1673630670249,3.11444354,1423.2,1422.8,16.889915]
[1673630670522,0.0030698,1423.0,1422.8,7.04816]
[1673630670727,1.0426313,1423.0,1422.8,14.07655]
[1673630670881,1.0426313,1423.0,1422.8,0.02]
[1673630671089,0.0030698,1423.0,1422.8,7.02839]
[1673630671354,0.0030698,1423.0,1422.9,14.758639]
[1673630671543,0.0030698,1423.0,1422.9,25.41287172]
[1673630671929,0.0030698,1423.0,1422.9,14.778639]
[1673630672145,0.0030698,1423.0,1422.9,1.264]
[1673630672355,0.0030698,1423.0,1422.9,1.244]
[1673630672894,0.0030698,1423.0,1422.9,8.27907909]
[1673630673244,0.0030698,1423.0,1422.9,22.35487909]
[1673630674074,0.0030698,1423.0,1422.9,1.27117909]
[1673630674285,0.0030698,1423.0,1422.9,1.25117909]
[1673630674905,0.0030698,1423.0,1422.9,1.2487648]
[1673630675111,0.0030698,1423.0,1422.9,19.8648533]
[1673630675345,0.0030698,1423.0,1422.9,19.8848533]
[1673630676072,0.0030698,1423.0,1422.9,26.9127533]
[1673630676234,0.0030698,1423.0,1422.9,19.8848533]
[1673630676864,0.0030698,1423.0,1422.9,8.2966648]
[1673630677752,0.0030698,1423.0,1422.9,0.0247648]
[1673630677963,1.0426313,1423.0,1422.9,0.0047648]
[1673630678341,0.0030698,1423.0,1422.9,2.5047648]
[1673630678547,0.0030698,1423.0,1422.9,14.0605648]
[1673630678800,0.0030698,1423.0,1422.9,23.92214328]
[1673630678998,1.0426313,1423.0,1422.9,23.92214328]
[1673630679206,1.0426313,1423.0,1422.9,14.0805648]
[1673630679394,1.0426313,1423.0,1422.9,7.0526648]
[1673630679609,1.0426313,1423.0,1422.9,14.0805648]
[1673630680018,1.0426313,1423.0,1422.9,0.02]
[1673630680234,1.0426313,1423.0,1422.8,7.04797]
[1673630680445,1.0426313,1423.0,1422.8,21.10475]
[1673630681117,1.0426313,1423.0,1422.8,14.07636]
[1673630681753,1.0395615,1422.9,1422.8,0.02]
[1673630681925,1.0395615,1422.9,1422.5,7.04947]
[1673630682120,1.0395615,1422.9,1422.6,3.60633272]
[1673630682335,1.0395615,1422.9,1422.8,7.02839]
[1673630682581,1.0395615,1422.9,1422.8,7.04839]
[1673630682793,1.0395615,1422.9,1422.8,14.07678]
[1673630683113,1.0395615,1422.9,1422.8,16.57678]
[1673630683339,1.0395615,1422.9,1422.8,21.10517]
[1673630683490,2.58744354,1422.9,1422.8,7.04839]
[1673630683910,2.58744354,1422.9,1422.8,14.07678]
[1673630684137,1.0395615,1422.9,1422.8,14.07678]
[1673630684593,1.0395615,1422.9,1422.8,21.10517]
[1673630684755,0.9895615,1422.9,1422.8,14.07678]
[1673630684965,0.9895615,1422.9,1422.8,21.10517]
[1673630686700,0.9895615,1422.9,1422.8,14.07678]
[1673630687010,0.9895615,1422.9,1422.8,0.02]
[1673630687168,0.9895615,1422.9,1422.7,14.0771]
[1673630687389,2.53744354,1422.9,1422.7,17.68343272]
[1673630687711,2.53744354,1422.9,1422.7,17.68368272]
[1673630688046,4.15719632,1422.9,1422.7,0.02]
[1673630688247,4.15719632,1422.9,1422.5,7.04758]
[1673630688605,4.15719632,1422.9,1422.7,9.52875]
[1673630688770,4.15719632,1422.9,1422.7,9.54675]
[1673630688979,1.54788204,1422.8,1422.7,7.04675]
[1673630689234,1.54788204,1422.8,1422.7,0.018]
[1673630689235,1.96360167,1422.8,1422.7,0.018]
[1673630689402,2.49080167,1422.8,1422.5,2.518]
[1673630689760,0.94291963,1422.8,1422.5,9.52982]
[1673630690116,2.49080167,1422.8,1422.5,13.15415272]
[1673630690280,2.49080167,1422.8,1422.5,20.18402272]
[1673630690604,2.49080167,1422.8,1422.5,23.60756]
[1673630690768,2.49280167,1422.8,1422.5,16.57569]
[1673630690969,2.49080167,1422.8,1422.5,23.60756]
[1673630691759,0.5272,1422.8,1422.5,27.21389272]
[1673630692179,4.75039632,1422.9,1422.5,27.21389272]
[1673630692358,1.54788204,1422.8,1422.5,27.21389272]
[1673630692979,3.20251428,1422.9,1422.5,27.21389272]
[1673630692980,4.75039632,1422.9,1422.5,27.21389272]
[1673630693347,4.68439632,1422.9,1422.5,29.82979111]
[1673630693936,2.07508204,1422.9,1422.6,3.60633272]
[1673630694149,1.54788204,1422.9,1422.7,21.08664]
[1673630694401,1.54788204,1422.9,1422.7,21.10464]
[1673630694549,1.54788204,1422.9,1422.7,14.07576]
[1673630694868,1.05276726,1422.8,1422.7,14.07576]
[1673630695223,1.54788204,1422.9,1422.7,14.07576]
[1673630695514,2.18124883,1422.9,1422.7,14.07576]
[1673630695915,1.05297793,1422.8,1422.7,14.07576]
[1673630696601,2.60085997,1422.8,1422.7,0.018]
[1673630696828,2.60085997,1422.8,1422.6,14.07623]
[1673630697001,2.60085997,1422.8,1422.6,0.018]
[1673630697180,2.60085997,1422.8,1422.6,7.0293]
[1673630697181,3.13960564,1422.8,1422.6,7.0293]
[1673630697425,3.13960564,1422.8,1422.6,7.0473]
[1673630697961,1.00297793,1422.7,1422.6,0.018]
[1673630698281,2.08662771,1422.8,1422.6,7.02938]
[1673630698471,0.54074567,1422.8,1422.6,7.04538]
[1673630698651,2.08662771,1422.8,1422.6,7.04735]
[1673630698907,2.08662771,1422.8,1422.6,0.018]
[1673630699214,2.08662771,1422.8,1422.5,14.0772]
[1673630699383,2.08662771,1422.8,1422.5,7.0476]
[1673630699724,0.20866277,1422.7,1422.5,7.0476]
[1673630700353,0.20866277,1422.7,1422.5,14.07747]
[1673630700546,0.20866277,1422.7,1422.5,21.10734]
[1673630700758,1e-08,1422.7,1422.5,21.10734]
[1673630701196,1e-08,1422.7,1422.5,7.0476]
[1673630701444,0.0024554,1422.7,1422.5,0.018]
[1673630701583,0.0024554,1422.7,1422.4,7.04834]
[1673630701804,0.0024554,1422.7,1422.4,10.65467272]
[1673630701995,0.0024554,1422.7,1422.4,6.12433272]
[1673630702205,7.0313854,1422.7,1422.4,3.62433272]
[1673630702453,0.0684554,1422.7,1422.4,10.63668272]